[Event "*** Titled Tuesday Blitz"]
[Site "Chess.com"]
[Date "2021.03.16"]
[Round "2"]
[White "eCztery"]
[Black "Trovita84"]
[Result "0-1"]
[WhiteElo "2400"]
[BlackElo "2093"]
[TimeControl "180+1"]
[EndTime "10:17:31 PDT"]
[Termination "Trovita84 won by resignation"]

1. e4 {[%clk 0:03:00.9]} 1... c6 {[%clk 0:02:59.2]} 2. Nc3 {[%clk 0:03:00.2]}
2... d5 {[%clk 0:02:52.9]} 3. Nf3 {[%clk 0:02:58.6]} 3... dxe4 {[%clk
0:02:51.8]} 4. Nxe4 {[%clk 0:02:55.3]} 4... Nd7 {[%clk 0:02:52.1]} 5. Qe2 {[%clk
0:02:47.5]} 5... Ndf6 {[%clk 0:02:48.7]} 6. d3 {[%clk 0:02:47.4]} 6... Nxe4
{[%clk 0:02:45.4]} 7. dxe4 {[%clk 0:02:48.3]} 7... g6 {[%clk 0:02:35.1]} 8. Bd2
{[%clk 0:02:47.8]} 8... Bg7 {[%clk 0:02:33.1]} 9. O-O-O {[%clk 0:02:47.7]} 9...
Qb6 {[%clk 0:02:22.5]} 10. e5 {[%clk 0:02:46.6]} 10... Bg4 {[%clk 0:02:16.8]}
11. Bc3 {[%clk 0:02:46.2]} 11... e6 {[%clk 0:02:07.7]} 12. h3 {[%clk 0:02:31.8]}
12... Bxf3 {[%clk 0:02:05]} 13. Qxf3 {[%clk 0:02:32.7]} 13... Ne7 {[%clk
0:02:03.5]} 14. Bc4 {[%clk 0:02:24.9]} 14... O-O {[%clk 0:02:00.7]} 15. h4
{[%clk 0:02:23.5]} 15... Qc5 {[%clk 0:01:52.6]} 16. Bb3 {[%clk 0:02:15.4]} 16...
Rfd8 {[%clk 0:01:35.6]} 17. h5 {[%clk 0:02:14.2]} 17... Bxe5 {[%clk 0:01:25.1]}
18. hxg6 {[%clk 0:02:12.5]} 18... Nxg6 {[%clk 0:01:21.5]} 19. Rxd8+ {[%clk
0:01:32.9]} 19... Rxd8 {[%clk 0:01:21]} 20. Qh3 {[%clk 0:01:32.4]} 20... Bxc3
{[%clk 0:01:12.2]} 21. Qxh7+ {[%clk 0:01:31.4]} 21... Kf8 {[%clk 0:01:09.8]} 22.
bxc3 {[%clk 0:01:25.2]} 22... Qxc3 {[%clk 0:00:59.8]} 23. Kb1 {[%clk 0:01:16.8]}
23... Ke7 {[%clk 0:00:52.4]} 24. Qh3 {[%clk 0:00:58.9]} 24... Qxh3 {[%clk
0:00:46.1]} 25. Rxh3 {[%clk 0:00:59.8]} 25... Rd1+ {[%clk 0:00:41.2]} 26. Kb2
{[%clk 0:00:59.3]} 26... Rd2 {[%clk 0:00:36.1]} 27. Rf3 {[%clk 0:00:56.2]} 27...
Ne5 {[%clk 0:00:35]} 28. Re3 {[%clk 0:00:54.3]} 28... Ng4 {[%clk 0:00:31.7]} 29.
Re4 {[%clk 0:00:53.3]} 29... Nxf2 {[%clk 0:00:31.1]} 30. Kc1 {[%clk 0:00:46.8]}
30... Nxe4 {[%clk 0:00:25]} 31. a4 {[%clk 0:00:46.5]} 31... Rxg2 {[%clk
0:00:24.4]} 32. a5 {[%clk 0:00:46.5]} 32... Rg1+ {[%clk 0:00:24.6]} 33. Kb2
{[%clk 0:00:46.4]} 33... a6 {[%clk 0:00:25.5]} 34. Ka3 {[%clk 0:00:45.9]} 34...
f5 {[%clk 0:00:25.9]} 35. Kb4 {[%clk 0:00:46.8]} 35... f4 {[%clk 0:00:26.7]} 36.
Bd5 {[%clk 0:00:44.1]} 36... f3 {[%clk 0:00:27.6]} 37. Bxe4 {[%clk 0:00:45]}
37... f2 {[%clk 0:00:27.5]} 38. Bd3 {[%clk 0:00:45.9]} 38... f1=Q {[%clk
0:00:25.4]} 39. Bxf1 {[%clk 0:00:46.5]} 39... Rxf1 {[%clk 0:00:26.3]} 40. Kc5
{[%clk 0:00:47.4]} 40... Rf5+ {[%clk 0:00:27.2]} 41. Kb6 {[%clk 0:00:47.6]}
41... Rb5+ {[%clk 0:00:28.1]} 42. Ka7 {[%clk 0:00:47.3]} 42... Kd6 {[%clk
0:00:27.9]} 43. c4 {[%clk 0:00:46.8]} 43... Rxa5 {[%clk 0:00:27.3]} 44. Kb6
{[%clk 0:00:47.7]} 44... Rc5 {[%clk 0:00:27.2]} 45. Ka7 {[%clk 0:00:44.5]} 45...
Rxc4 {[%clk 0:00:28.1]} 46. Kb6 {[%clk 0:00:45.4]} 46... e5 {[%clk 0:00:28.8]}
47. Ka7 {[%clk 0:00:46.3]} 47... e4 {[%clk 0:00:29.7]} 48. Kb6 {[%clk
0:00:47.2]} 48... e3 {[%clk 0:00:30.6]} 49. Ka7 {[%clk 0:00:48.1]} 49... e2
{[%clk 0:00:31.5]} 50. Kb6 {[%clk 0:00:49]} 50... e1=Q {[%clk 0:00:31.2]} 51.
Ka7 {[%clk 0:00:49.9]} 51... Qe3+ {[%clk 0:00:31.4]} 52. Ka8 {[%clk 0:00:50.6]}
52... Rf4 {[%clk 0:00:30.7]} 53. Kb8 {[%clk 0:00:48]} 53... Rf8+ {[%clk
0:00:30.6]} 54. Kxb7 {[%clk 0:00:48.9]} 54... Qe7+ {[%clk 0:00:29.7]} 55. Kb6
{[%clk 0:00:48.8]} 55... Rb8+ {[%clk 0:00:30]} 56. Ka5 {[%clk 0:00:47.5]} 56...
Qb7 {[%clk 0:00:29.5]} 0-1

[Event "*** Titled Tuesday Blitz"]
[Site "Chess.com"]
[Date "2021.03.16"]
[Round "2"]
[White "ChessQueen"]
[Black "Julianos82"]
[Result "1-0"]
[WhiteElo "2723"]
[BlackElo "2402"]
[TimeControl "180+1"]
[EndTime "10:17:33 PDT"]
[Termination "ChessQueen won by checkmate"]

1. e4 {[%clk 0:03:00.9]} 1... c5 {[%clk 0:02:59.2]} 2. c3 {[%clk 0:03:00.5]}
2... d6 {[%clk 0:02:56.3]} 3. d4 {[%clk 0:03:00.1]} 3... Nf6 {[%clk 0:02:56.5]}
4. Bd3 {[%clk 0:02:59.6]} 4... Nbd7 {[%clk 0:02:52.6]} 5. Nf3 {[%clk 0:02:58.1]}
5... e5 {[%clk 0:02:52.7]} 6. O-O {[%clk 0:02:56.9]} 6... Be7 {[%clk 0:02:49]}
7. Re1 {[%clk 0:02:55]} 7... O-O {[%clk 0:02:48.4]} 8. Nbd2 {[%clk 0:02:52.6]}
8... Re8 {[%clk 0:02:43.7]} 9. Nf1 {[%clk 0:02:52.3]} 9... a6 {[%clk 0:02:42.7]}
10. a4 {[%clk 0:02:51.3]} 10... b6 {[%clk 0:02:40.8]} 11. Ng3 {[%clk 0:02:49.7]}
11... Bb7 {[%clk 0:02:38.2]} 12. d5 {[%clk 0:02:49.7]} 12... g6 {[%clk
0:02:37.1]} 13. b4 {[%clk 0:02:48.3]} 13... Bf8 {[%clk 0:02:18]} 14. h3 {[%clk
0:02:47.3]} 14... h6 {[%clk 0:02:14.1]} 15. Be3 {[%clk 0:02:47.1]} 15... Kh7
{[%clk 0:02:13.2]} 16. Qd2 {[%clk 0:02:36.8]} 16... a5 {[%clk 0:02:03.3]} 17.
Reb1 {[%clk 0:02:30.3]} 17... Ba6 {[%clk 0:02:01.4]} 18. Bc2 {[%clk 0:02:24.3]}
18... Qc7 {[%clk 0:01:37.3]} 19. Nh2 {[%clk 0:02:19.6]} 19... Bg7 {[%clk
0:01:34.1]} 20. f3 {[%clk 0:02:13.7]} 20... Rec8 {[%clk 0:01:29.1]} 21. bxa5
{[%clk 0:02:13.3]} 21... bxa5 {[%clk 0:01:28.5]} 22. Ng4 {[%clk 0:02:12.9]}
22... h5 {[%clk 0:01:20.4]} 23. Nf2 {[%clk 0:02:06.5]} 23... Bc4 {[%clk
0:01:16.9]} 24. h4 {[%clk 0:02:04]} 24... Ng8 {[%clk 0:01:13.7]} 25. Nh3 {[%clk
0:02:01.3]} 25... f6 {[%clk 0:01:11.3]} 26. f4 {[%clk 0:01:58.1]} 26... Bh6
{[%clk 0:01:09.5]} 27. f5 {[%clk 0:01:55.4]} 27... Bxe3+ {[%clk 0:01:03.6]} 28.
Qxe3 {[%clk 0:01:56.3]} 28... Nh6 {[%clk 0:01:03.8]} 29. fxg6+ {[%clk
0:01:53.9]} 29... Kxg6 {[%clk 0:01:04.7]} 30. Bd1 {[%clk 0:01:34.3]} 30... Rg8
{[%clk 0:00:49.5]} 31. Nxh5 {[%clk 0:01:22.5]} 31... Kh7 {[%clk 0:00:48.4]} 32.
Rb2 {[%clk 0:01:21.5]} 32... Rg6 {[%clk 0:00:48]} 33. Rab1 {[%clk 0:01:19.1]}
33... Rag8 {[%clk 0:00:47.8]} 34. Bf3 {[%clk 0:01:16.3]} 34... Ba6 {[%clk
0:00:45.9]} 35. Kh1 {[%clk 0:01:06.7]} 35... Qd8 {[%clk 0:00:45.6]} 36. Qe1
{[%clk 0:00:46.5]} 36... Ng4 {[%clk 0:00:44.5]} 37. Ng3 {[%clk 0:00:42.6]} 37...
Nf2+ {[%clk 0:00:39.3]} 38. Qxf2 {[%clk 0:00:41]} 38... Rxg3 {[%clk 0:00:40.1]}
39. Kh2 {[%clk 0:00:34.1]} 39... R3g7 {[%clk 0:00:38.2]} 40. Rg1 {[%clk
0:00:30.5]} 40... Kh8 {[%clk 0:00:37.9]} 41. Be2 {[%clk 0:00:30.6]} 41... Bxe2
{[%clk 0:00:36.8]} 42. Qxe2 {[%clk 0:00:31]} 42... Rh7 {[%clk 0:00:31.9]} 43.
Qf3 {[%clk 0:00:31.2]} 43... Rxh4 {[%clk 0:00:31.1]} 44. Rb7 {[%clk 0:00:29]}
44... Rh7 {[%clk 0:00:30.8]} 45. Qf5 {[%clk 0:00:28.6]} 45... Qe8 {[%clk
0:00:28.6]} 46. Ra7 {[%clk 0:00:25.1]} 46... Rg5 {[%clk 0:00:26.3]} 47. Qe6
{[%clk 0:00:23.4]} 47... Qh5 {[%clk 0:00:24.8]} 48. Ra8+ {[%clk 0:00:21.5]}
48... Rg8 {[%clk 0:00:23.3]} 49. Qxg8# {[%clk 0:00:21]} 1-0

[Event "*** Titled Tuesday Blitz"]
[Site "Chess.com"]
[Date "2021.03.16"]
[Round "2"]
[White "BahadirOzen"]
[Black "AttackSparrow"]
[Result "1-0"]
[WhiteElo "2779"]
[BlackElo "2512"]
[TimeControl "180+1"]
[EndTime "10:17:34 PDT"]
[Termination "BahadirOzen won by resignation"]

1. g3 {[%clk 0:03:00.9]} 1... g6 {[%clk 0:02:59.9]} 2. Bg2 {[%clk 0:03:01.2]}
2... Bg7 {[%clk 0:03:00.6]} 3. d4 {[%clk 0:03:01.8]} 3... Nf6 {[%clk 0:03:00.8]}
4. e4 {[%clk 0:03:00.6]} 4... O-O {[%clk 0:03:00.7]} 5. Ne2 {[%clk 0:03:01.1]}
5... d6 {[%clk 0:03:00.9]} 6. O-O {[%clk 0:03:01.1]} 6... e5 {[%clk 0:03:01.3]}
7. Nbc3 {[%clk 0:03:01.2]} 7... exd4 {[%clk 0:03:00.6]} 8. Nxd4 {[%clk
0:03:00.8]} 8... Re8 {[%clk 0:03:01.3]} 9. h3 {[%clk 0:02:59.5]} 9... a6 {[%clk
0:03:00.6]} 10. a4 {[%clk 0:02:46.2]} 10... Nbd7 {[%clk 0:02:58.9]} 11. Bf4
{[%clk 0:02:38.1]} 11... Nc5 {[%clk 0:02:57.1]} 12. Re1 {[%clk 0:02:38.5]} 12...
Ne6 {[%clk 0:02:55.5]} 13. Nxe6 {[%clk 0:02:35.7]} 13... Bxe6 {[%clk 0:02:56.4]}
14. Qd2 {[%clk 0:02:31.2]} 14... Nd7 {[%clk 0:02:55]} 15. Rad1 {[%clk
0:02:27.9]} 15... Ne5 {[%clk 0:02:54.4]} 16. Kh2 {[%clk 0:02:21.7]} 16... Rb8
{[%clk 0:02:49.8]} 17. b3 {[%clk 0:02:18]} 17... h5 {[%clk 0:02:45.4]} 18. Bh6
{[%clk 0:01:57.9]} 18... h4 {[%clk 0:02:39.4]} 19. Bxg7 {[%clk 0:01:33.4]} 19...
hxg3+ {[%clk 0:02:38.3]} 20. Kxg3 {[%clk 0:01:34.3]} 20... Kxg7 {[%clk
0:02:38.8]} 21. f4 {[%clk 0:01:34.4]} 21... Nc6 {[%clk 0:02:32.1]} 22. h4 {[%clk
0:01:22.3]} 22... Rh8 {[%clk 0:02:30.2]} 23. Rh1 {[%clk 0:01:22.7]} 23... Qf6
{[%clk 0:02:20.9]} 24. Ne2 {[%clk 0:01:01.5]} 24... Rh6 {[%clk 0:02:08.1]} 25.
Nd4 {[%clk 0:00:55]} 25... Nxd4 {[%clk 0:01:39.8]} 26. Qxd4 {[%clk 0:00:55.9]}
26... Rbh8 {[%clk 0:01:39.3]} 27. Qxf6+ {[%clk 0:00:53.6]} 27... Kxf6 {[%clk
0:01:40.2]} 28. a5 {[%clk 0:00:35.2]} 28... Ke7 {[%clk 0:01:39.2]} 29. b4 {[%clk
0:00:30.9]} 29... Rh5 {[%clk 0:01:37.8]} 30. c3 {[%clk 0:00:30.5]} 30... f6
{[%clk 0:01:33.1]} 31. Bf3 {[%clk 0:00:30.9]} 31... R5h6 {[%clk 0:01:31.4]} 32.
Rde1 {[%clk 0:00:31.5]} 32... Bd7 {[%clk 0:01:29.7]} 33. e5 {[%clk 0:00:27.2]}
33... dxe5 {[%clk 0:01:07.4]} 34. fxe5 {[%clk 0:00:26.9]} 34... Bc6 {[%clk
0:01:06.6]} 35. exf6+ {[%clk 0:00:26.7]} 35... Kxf6 {[%clk 0:01:07.1]} 36. Bxc6
{[%clk 0:00:27.1]} 36... bxc6 {[%clk 0:01:08]} 37. Rhf1+ {[%clk 0:00:27.3]}
37... Kg7 {[%clk 0:01:05.7]} 38. Re7+ {[%clk 0:00:27.8]} 38... Kg8 {[%clk
0:01:06.3]} 39. Re8+ {[%clk 0:00:28.2]} 39... Kg7 {[%clk 0:01:06.7]} 40. Re7+
{[%clk 0:00:28.7]} 40... Kg8 {[%clk 0:01:06.9]} 41. Rf4 {[%clk 0:00:23.5]} 41...
g5 {[%clk 0:01:07.2]} 42. hxg5 {[%clk 0:00:16.9]} 42... Rh3+ {[%clk 0:01:07.3]}
43. Kg4 {[%clk 0:00:17.5]} 43... R8h4+ {[%clk 0:01:05.9]} 44. Kf5 {[%clk
0:00:16.7]} 44... Rxf4+ {[%clk 0:01:05.9]} 45. Kxf4 {[%clk 0:00:17.6]} 45...
Rxc3 {[%clk 0:01:06.5]} 46. Rxc7 {[%clk 0:00:17.4]} 46... Rc4+ {[%clk
0:01:03.9]} 47. Kf5 {[%clk 0:00:15]} 47... Rxb4 {[%clk 0:01:04.3]} 48. Rxc6
{[%clk 0:00:14.5]} 48... Rb5+ {[%clk 0:01:01.9]} 49. Kg6 {[%clk 0:00:14]} 49...
Kf8 {[%clk 0:01:02.5]} 50. Rxa6 {[%clk 0:00:14.3]} 50... Rb1 {[%clk 0:01:03.2]}
51. Ra7 {[%clk 0:00:14.3]} 51... Rf1 {[%clk 0:01:01.1]} 52. a6 {[%clk
0:00:14.3]} 52... Ra1 {[%clk 0:01:00.5]} 53. Kf6 {[%clk 0:00:14]} 53... Ke8
{[%clk 0:01:00.5]} 54. g6 {[%clk 0:00:14.1]} 54... Rf1+ {[%clk 0:01:00.1]} 55.
Kg7 {[%clk 0:00:14.4]} 55... Ra1 {[%clk 0:01:00.3]} 56. Ra8+ {[%clk 0:00:14.7]}
56... Ke7 {[%clk 0:01:00.3]} 57. Kg8 {[%clk 0:00:15.6]} 57... Rg1 {[%clk
0:00:59.3]} 58. g7 {[%clk 0:00:15.1]} 58... Rh1 {[%clk 0:00:59.5]} 59. a7 {[%clk
0:00:12.7]} 59... Ra1 {[%clk 0:01:00]} 60. Rf8 {[%clk 0:00:12.3]} 1-0

[Event "*** Titled Tuesday Blitz"]
[Site "Chess.com"]
[Date "2021.03.16"]
[Round "2"]
[White "GoltsevDmitry2000"]
[Black "Mikhail_Golubev"]
[Result "1-0"]
[WhiteElo "2827"]
[BlackElo "2549"]
[TimeControl "180+1"]
[EndTime "10:17:42 PDT"]
[Termination "GoltsevDmitry2000 won by resignation"]

1. e4 {[%clk 0:03:00.4]} 1... c5 {[%clk 0:02:59.5]} 2. Nf3 {[%clk 0:02:56.2]}
2... d6 {[%clk 0:02:59.6]} 3. d4 {[%clk 0:02:53.9]} 3... Nf6 {[%clk 0:02:58.4]}
4. Nc3 {[%clk 0:02:49.6]} 4... cxd4 {[%clk 0:02:58.3]} 5. Nxd4 {[%clk
0:02:50.5]} 5... g6 {[%clk 0:02:58.4]} 6. Be3 {[%clk 0:02:46.7]} 6... Bg7 {[%clk
0:02:58.4]} 7. Be2 {[%clk 0:02:46.6]} 7... Nc6 {[%clk 0:02:58.2]} 8. O-O {[%clk
0:02:45]} 8... O-O {[%clk 0:02:57.8]} 9. Nb3 {[%clk 0:02:43.9]} 9... Ne5 {[%clk
0:02:55.5]} 10. h3 {[%clk 0:02:39]} 10... Be6 {[%clk 0:02:50.8]} 11. Nd4 {[%clk
0:02:37.4]} 11... Bc4 {[%clk 0:02:48.1]} 12. f4 {[%clk 0:02:36.2]} 12... Bxe2
{[%clk 0:02:47.9]} 13. Qxe2 {[%clk 0:02:36]} 13... Nc6 {[%clk 0:02:48.3]} 14.
Rad1 {[%clk 0:02:33.9]} 14... Nh5 {[%clk 0:02:26.2]} 15. Nxc6 {[%clk 0:02:30]}
15... bxc6 {[%clk 0:02:25.7]} 16. Qc4 {[%clk 0:02:29.1]} 16... Rb8 {[%clk
0:02:13.2]} 17. g4 {[%clk 0:02:23.9]} 17... Ng3 {[%clk 0:02:09.1]} 18. Rf3
{[%clk 0:02:18.4]} 18... Rxb2 {[%clk 0:02:05.5]} 19. Rxg3 {[%clk 0:02:18.1]}
19... Rxc2 {[%clk 0:02:05]} 20. Bd4 {[%clk 0:02:15.5]} 20... e5 {[%clk
0:02:02.3]} 21. fxe5 {[%clk 0:02:12.9]} 21... dxe5 {[%clk 0:02:02.3]} 22. Qb3
{[%clk 0:02:11.3]} 22... exd4 {[%clk 0:01:51.7]} 23. Qxc2 {[%clk 0:02:10.7]}
23... Qb6 {[%clk 0:01:50]} 24. Rb1 {[%clk 0:02:07.5]} 24... d3+ {[%clk
0:01:47.3]} 25. Qf2 {[%clk 0:01:52.7]} 25... Qxf2+ {[%clk 0:01:33]} 26. Kxf2
{[%clk 0:01:53.6]} 26... Bxc3 {[%clk 0:01:32.6]} 27. Rxd3 {[%clk 0:01:50.7]}
27... Ba5 {[%clk 0:01:32.2]} 28. Rb7 {[%clk 0:01:45]} 28... Bb6+ {[%clk
0:01:28.9]} 29. Kf3 {[%clk 0:01:44]} 29... c5 {[%clk 0:01:20.3]} 30. Rd6 {[%clk
0:01:40.2]} 30... Rc8 {[%clk 0:01:02.9]} 31. Rdd7 {[%clk 0:01:33.9]} 31... c4
{[%clk 0:01:02.8]} 32. Rxf7 {[%clk 0:01:29.9]} 32... Bd4 {[%clk 0:01:01.1]} 33.
Rbc7 {[%clk 0:00:56]} 33... Rb8 {[%clk 0:01:01.2]} 34. Rfd7 {[%clk 0:00:52.3]}
34... Rf8+ {[%clk 0:00:57.7]} 35. Ke2 {[%clk 0:00:45.9]} 35... Rf2+ {[%clk
0:00:14.2]} 36. Ke1 {[%clk 0:00:45.1]} 36... Bb6 {[%clk 0:00:09.8]} 37. Rd8+
{[%clk 0:00:43.5]} 37... Rf8 {[%clk 0:00:09.2]} 38. Rxf8+ {[%clk 0:00:43.9]}
38... Kxf8 {[%clk 0:00:09.3]} 39. Rxc4 {[%clk 0:00:44.8]} 39... Ke7 {[%clk
0:00:08.7]} 40. Ke2 {[%clk 0:00:45.7]} 40... Ke6 {[%clk 0:00:08.9]} 41. Kf3
{[%clk 0:00:45.9]} 41... Ke5 {[%clk 0:00:08.5]} 42. h4 {[%clk 0:00:46.3]} 42...
h5 {[%clk 0:00:04]} 43. gxh5 {[%clk 0:00:46.3]} 43... gxh5 {[%clk 0:00:03.7]}
44. Rc6 {[%clk 0:00:46.5]} 44... Bd8 {[%clk 0:00:01.9]} 45. Rh6 {[%clk
0:00:46.4]} 45... Bxh4 {[%clk 0:00:01.2]} 46. Rxh5+ {[%clk 0:00:47.3]} 46... Bg5
{[%clk 0:00:01.8]} 47. Rxg5+ {[%clk 0:00:47.5]} 47... Kd4 {[%clk 0:00:01.1]} 48.
Ra5 {[%clk 0:00:48.4]} 48... Kc3 {[%clk 0:00:01.1]} 49. Rxa7 {[%clk 0:00:48.7]}
49... Kb2 {[%clk 0:00:01.8]} 50. e5 {[%clk 0:00:48.7]} 50... Ka1 {[%clk
0:00:02.7]} 51. e6 {[%clk 0:00:49]} 1-0

[Event "*** Titled Tuesday Blitz"]
[Site "Chess.com"]
[Date "2021.03.16"]
[Round "2"]
[White "GregShahade"]
[Black "BvsN"]
[Result "1-0"]
[WhiteElo "2761"]
[BlackElo "2422"]
[TimeControl "180+1"]
[EndTime "10:17:47 PDT"]
[Termination "GregShahade won by resignation"]

1. e4 {[%clk 0:02:57.5]} 1... c5 {[%clk 0:03:00.2]} 2. Nf3 {[%clk 0:02:57.4]}
2... e6 {[%clk 0:03:00.7]} 3. d4 {[%clk 0:02:57.8]} 3... cxd4 {[%clk 0:03:01.3]}
4. Nxd4 {[%clk 0:02:58.7]} 4... a6 {[%clk 0:03:01.8]} 5. Nc3 {[%clk 0:02:59]}
5... Qc7 {[%clk 0:03:02.3]} 6. Bd3 {[%clk 0:02:59.3]} 6... Nf6 {[%clk
0:03:02.6]} 7. O-O {[%clk 0:02:59]} 7... Bc5 {[%clk 0:03:00.9]} 8. Nb3 {[%clk
0:02:58.7]} 8... Be7 {[%clk 0:03:01.2]} 9. a4 {[%clk 0:02:47.4]} 9... Nc6 {[%clk
0:02:47.2]} 10. a5 {[%clk 0:02:46.7]} 10... d6 {[%clk 0:02:38]} 11. Be3 {[%clk
0:02:44.3]} 11... O-O {[%clk 0:02:35.5]} 12. f4 {[%clk 0:02:38.2]} 12... Nd7
{[%clk 0:02:27.8]} 13. Qe2 {[%clk 0:02:34.9]} 13... Nb4 {[%clk 0:02:11.4]} 14.
Qf2 {[%clk 0:02:15.3]} 14... Nc5 {[%clk 0:01:42.5]} 15. Nxc5 {[%clk 0:02:07]}
15... dxc5 {[%clk 0:01:42.4]} 16. Bc4 {[%clk 0:01:54.3]} 16... Bd7 {[%clk
0:01:40.7]} 17. e5 {[%clk 0:01:45.8]} 17... Bc6 {[%clk 0:01:32.9]} 18. Bxc5
{[%clk 0:01:33.7]} 18... Bxg2 {[%clk 0:00:58.5]} 19. Bxe7 {[%clk 0:01:10.5]}
19... Bxf1 {[%clk 0:00:58.7]} 20. Bxf8 {[%clk 0:00:52.5]} 20... Qxc4 {[%clk
0:00:45.5]} 21. Bxb4 {[%clk 0:00:49.7]} 21... Qxb4 {[%clk 0:00:38.3]} 22. Rxf1
{[%clk 0:00:48.4]} 22... Qxb2 {[%clk 0:00:36.6]} 23. Ne4 {[%clk 0:00:48.3]}
23... Rc8 {[%clk 0:00:35.1]} 24. c3 {[%clk 0:00:46.3]} 24... Qa3 {[%clk
0:00:24.4]} 25. Qb6 {[%clk 0:00:43.8]} 25... Rc4 {[%clk 0:00:18.2]} 26. Qd8+
{[%clk 0:00:36.1]} 26... Qf8 {[%clk 0:00:17.7]} 27. Qxf8+ {[%clk 0:00:34.3]}
27... Kxf8 {[%clk 0:00:18.2]} 28. Nd6 {[%clk 0:00:32.3]} 28... Rxc3 {[%clk
0:00:17.4]} 29. Rb1 {[%clk 0:00:32.7]} 29... f6 {[%clk 0:00:14]} 30. Rxb7 {[%clk
0:00:31.6]} 30... fxe5 {[%clk 0:00:14.3]} 31. fxe5 {[%clk 0:00:30.5]} 31... g6
{[%clk 0:00:14.2]} 32. Rxh7 {[%clk 0:00:27]} 32... Rc5 {[%clk 0:00:13.3]} 33.
Rf7+ {[%clk 0:00:20]} 33... Kg8 {[%clk 0:00:13.1]} 34. Rf6 {[%clk 0:00:17.4]}
34... Rxe5 {[%clk 0:00:11.3]} 35. Rxg6+ {[%clk 0:00:14.9]} 35... Kh7 {[%clk
0:00:11.3]} 36. Rf6 {[%clk 0:00:12.7]} 36... Rxa5 {[%clk 0:00:09.7]} 37. Rxe6
{[%clk 0:00:12.8]} 37... Rg5+ {[%clk 0:00:08.4]} 38. Kf2 {[%clk 0:00:12]} 38...
a5 {[%clk 0:00:08.2]} 39. Re7+ {[%clk 0:00:12.3]} 39... Kg8 {[%clk 0:00:07.5]}
40. Ra7 {[%clk 0:00:11.3]} 40... Rd5 {[%clk 0:00:07.6]} 41. Ne4 {[%clk
0:00:11.2]} 41... Re5 {[%clk 0:00:07]} 42. Nf6+ {[%clk 0:00:10.5]} 1-0

[Event "*** Titled Tuesday Blitz"]
[Site "Chess.com"]
[Date "2021.03.16"]
[Round "2"]
[White "SimplyDevina"]
[Black "GMaka"]
[Result "0-1"]
[WhiteElo "2205"]
[BlackElo "2450"]
[TimeControl "180+1"]
[EndTime "10:17:47 PDT"]
[Termination "GMaka won by resignation"]

1. d4 {[%clk 0:03:00.9]} 1... Nf6 {[%clk 0:02:59.6]} 2. c4 {[%clk 0:02:58.3]}
2... Nc6 {[%clk 0:02:58.9]} 3. Nc3 {[%clk 0:02:54.5]} 3... e5 {[%clk 0:02:59]}
4. d5 {[%clk 0:02:50.7]} 4... Ne7 {[%clk 0:02:58.3]} 5. e4 {[%clk 0:02:50.7]}
5... Ng6 {[%clk 0:02:58.6]} 6. Bd3 {[%clk 0:02:50.9]} 6... Bb4 {[%clk
0:02:46.6]} 7. Ne2 {[%clk 0:02:43.9]} 7... O-O {[%clk 0:02:46.6]} 8. O-O {[%clk
0:02:36]} 8... d6 {[%clk 0:02:38.4]} 9. a3 {[%clk 0:02:33.3]} 9... Bxc3 {[%clk
0:02:37.6]} 10. Nxc3 {[%clk 0:02:32.3]} 10... Nf4 {[%clk 0:02:25.9]} 11. Ne2
{[%clk 0:02:27.3]} 11... N6h5 {[%clk 0:02:12.9]} 12. Ng3 {[%clk 0:02:14.8]}
12... Nxd3 {[%clk 0:01:59.1]} 13. Qxd3 {[%clk 0:02:05]} 13... Nf4 {[%clk
0:01:57.3]} 14. Bxf4 {[%clk 0:02:01.3]} 14... exf4 {[%clk 0:01:58.2]} 15. Nf5
{[%clk 0:02:00.6]} 15... Qg5 {[%clk 0:01:50.9]} 16. Kh1 {[%clk 0:01:33.3]} 16...
Re8 {[%clk 0:01:47.1]} 17. Rae1 {[%clk 0:01:28.2]} 17... Re5 {[%clk 0:01:43.4]}
18. Nd4 {[%clk 0:01:22.3]} 18... Qh6 {[%clk 0:01:36.7]} 19. Nf5 {[%clk
0:00:53.2]} 19... Bxf5 {[%clk 0:01:28.8]} 20. exf5 {[%clk 0:00:53.2]} 20... Rae8
{[%clk 0:01:29.6]} 21. Rxe5 {[%clk 0:00:50.4]} 21... Rxe5 {[%clk 0:01:30.5]} 22.
Qc3 {[%clk 0:00:39.7]} 22... b6 {[%clk 0:00:46.8]} 23. Re1 {[%clk 0:00:39.6]}
23... Qf6 {[%clk 0:00:38.5]} 24. Rxe5 {[%clk 0:00:39.1]} 24... Qxe5 {[%clk
0:00:39]} 25. Qxe5 {[%clk 0:00:30.7]} 25... dxe5 {[%clk 0:00:39.1]} 26. g3
{[%clk 0:00:25.9]} 26... Kf8 {[%clk 0:00:25]} 27. gxf4 {[%clk 0:00:19]} 27...
exf4 {[%clk 0:00:24.5]} 28. Kg2 {[%clk 0:00:19.8]} 28... g5 {[%clk 0:00:22.4]}
29. Kf3 {[%clk 0:00:16.6]} 29... Ke7 {[%clk 0:00:21.4]} 30. Ke4 {[%clk 0:00:08]}
30... Kd6 {[%clk 0:00:20.5]} 31. b4 {[%clk 0:00:05.4]} 31... a5 {[%clk 0:00:20]}
32. f6 {[%clk 0:00:03.6]} 32... h6 {[%clk 0:00:19.2]} 33. Kf5 {[%clk 0:00:03.2]}
33... axb4 {[%clk 0:00:18.8]} 34. axb4 {[%clk 0:00:04.1]} 34... b5 {[%clk
0:00:19.7]} 35. c5+ {[%clk 0:00:02.4]} 35... Kxd5 {[%clk 0:00:19.9]} 36. h4
{[%clk 0:00:01.8]} 36... gxh4 {[%clk 0:00:19.1]} 37. Kxf4 {[%clk 0:00:02.5]}
37... Ke6 {[%clk 0:00:18.6]} 38. Kg4 {[%clk 0:00:02.9]} 38... Kxf6 {[%clk
0:00:19]} 39. Kxh4 {[%clk 0:00:03.6]} 39... Kg6 {[%clk 0:00:19.1]} 40. Kg4
{[%clk 0:00:03.3]} 40... f5+ {[%clk 0:00:19]} 41. Kf4 {[%clk 0:00:03.6]} 41...
Kf6 {[%clk 0:00:19.4]} 42. f3 {[%clk 0:00:03.3]} 42... c6 {[%clk 0:00:18.8]} 43.
Ke3 {[%clk 0:00:02.5]} 43... Ke5 {[%clk 0:00:19.2]} 44. f4+ {[%clk 0:00:02.2]}
44... Kd5 {[%clk 0:00:19.5]} 45. Kf3 {[%clk 0:00:02]} 45... Kc4 {[%clk
0:00:19.5]} 46. Kg3 {[%clk 0:00:02.9]} 46... Kxb4 {[%clk 0:00:20.4]} 47. Kh4
{[%clk 0:00:03.8]} 47... Kxc5 {[%clk 0:00:20.2]} 48. Kh5 {[%clk 0:00:04.7]}
48... b4 {[%clk 0:00:21.1]} 49. Kxh6 {[%clk 0:00:05.6]} 49... b3 {[%clk
0:00:22]} 50. Kg5 {[%clk 0:00:06.5]} 50... b2 {[%clk 0:00:22.9]} 51. Kxf5 {[%clk
0:00:07.4]} 0-1